bitfinex-derivatives/quotes_SOLF0:USTF0_20250109
["timestamp","ask_amount","ask_price","bid_price","bid_amount"]
[1736416837242,9.29637423,191.84,191.79,2.6084]
[1736416839253,6.68857423,191.84,191.79,2.6084]
[1736416839446,2.6079,191.83,191.79,2.6084]
[1736416841548,6.68857423,191.82,191.79,2.6084]
[1736416844045,9.29657423,191.82,191.79,2.6084]
[1736416844250,6.68857423,191.82,191.76,44.62591746]
[1736416844471,6.68857423,191.78,191.71,7.25361885]
[1736416844942,6.68857423,191.78,191.71,13.94219308]
[1736416845352,6.68857423,191.78,191.71,6.68857423]
[1736416845543,6.68857423,191.76,191.69,6.68857423]
[1736416847060,2.609,191.75,191.7,2.6095]
[1736416849261,9.29747423,191.76,191.71,2.6094]
[1736416850759,6.68857423,191.76,191.73,2.6092]
[1736416851060,6.68857423,191.78,191.73,6.68857423]
[1736416851354,4.38,191.79,191.73,6.68857423]
[1736416852070,6.9884,191.79,191.75,2.6089]
[1736416852365,6.68857423,191.78,191.71,6.68857423]
[1736416853169,6.68857423,191.78,191.74,2.609]
[1736416853964,8.69261104,191.85,191.74,6.68857423]
[1736416854156,6.68857423,191.84,191.78,6.68857423]
[1736416854360,5.55231104,191.85,191.78,6.68857423]
[1736416855154,5.55231104,191.85,191.81,2.6081]
[1736416855553,5.55231104,191.85,191.8,6.68857423]
[1736416855754,8.15991104,191.85,191.8,9.29677423]
[1736416857664,5.55231104,191.85,191.8,9.29677423]
[1736416858167,5.55231104,191.85,191.81,2.6081]
[1736416860766,8.15991104,191.85,191.8,9.29677423]
[1736416860959,8.15991104,191.85,191.8,6.68857423]
[1736416861378,6.68857423,191.86,191.8,6.68857423]
[1736416861568,6.68857423,191.86,191.81,2.6081]
[1736416861768,6.68857423,191.86,191.8,6.68857423]
[1736416861974,6.68857423,191.86,191.83,2.6078]
[1736416862371,6.68857423,191.86,191.8,6.68857423]
[1736416864176,6.68857423,191.86,191.82,2.608]
[1736416867076,9.29607423,191.86,191.82,2.608]
[1736416867569,6.68857423,191.86,191.81,2.6081]
[1736416867776,2.6076,191.85,191.81,2.6081]
[1736416869076,6.68857423,191.84,191.79,2.6084]
[1736416869279,6.68857423,191.84,191.75,1.5462]
[1736416869679,4.38,191.92,191.77,2.6086]
[1736416869680,9.29667423,191.82,191.77,2.6086]
[1736416870273,6.68857423,191.82,191.77,2.6086]
[1736416870483,2.6082,191.81,191.77,2.6086]
[1736416870773,6.68857423,191.82,191.76,9.29737423]
[1736416871275,6.68857423,191.8,191.74,6.68857423]
[1736416871472,6.68857423,191.8,191.75,2.6089]
[1736416871872,6.68857423,191.78,191.7,8.20297423]
[1736416872124,5.2136,191.91,191.7,8.20297423]
[1736416872125,6.68857423,191.76,191.7,6.68857423]
[1736416872484,9.29737423,191.76,191.71,2.6095]
[1736416874974,6.68857423,191.76,191.72,2.6094]
[1736416875180,2.9844,191.81,191.72,6.68857423]
[1736416875376,6.68857423,191.79,191.72,6.68857423]
[1736416875677,6.68857423,191.79,191.74,2.609]
[1736416876276,6.68857423,191.79,191.72,6.68857423]
[1736416876591,10.77307423,191.81,191.74,6.68857423]
[1736416877895,6.68857423,191.81,191.76,6.68857423]
[1736416879177,6.68857423,191.81,191.77,2.6086]
[1736416879476,1.5406,191.87,191.82,2.608]
[1736416879695,8.22917423,191.87,191.8,6.68857423]
[1736416879881,14.75178696,191.89,191.82,6.68857423]
[1736416880075,2.6072,191.88,191.84,2.6077]
[1736416881675,2.6072,191.88,191.83,2.6078]
[1736416881880,2.6076,191.85,191.8,6.68857423]
[1736416882178,6.68857423,191.87,191.8,6.68857423]
[1736416882374,6.68857423,191.87,191.82,2.608]
[1736416883174,2.6075,191.86,191.82,2.608]
[1736416883376,2.6075,191.86,191.8,6.68857423]
[1736416883580,2.6075,191.86,191.81,2.6081]
[1736416884070,6.68857423,191.87,191.8,6.68857423]
[1736416884272,6.68857423,191.89,191.83,2.6078]
[1736416885375,6.68857423,191.92,191.86,6.68857423]
[1736416886683,6.68857423,191.92,191.88,2.6072]
[1736416887478,2.6064,191.94,191.9,2.6069]
[1736416887683,6.68857423,191.93,191.86,6.68857423]
[1736416888271,6.68857423,191.93,191.88,6.68857423]
[1736416888478,6.68857423,191.93,191.91,2.6067]
[1736416888681,1.5795,192.02,191.9,6.68857423]
[1736416888909,6.68857423,192.0,191.94,6.68857423]
[1736416889087,6.68857423,192.0,191.98,2.6058]
[1736416889386,8.22517423,192.02,191.94,6.68857423]
[1736416891184,10.83047423,192.02,191.97,2.6059]
[1736416892182,4.1419,192.02,191.97,2.6059]
[1736416892382,6.68857423,192.01,191.97,2.6059]
[1736416893582,6.68857423,192.01,191.96,6.68857423]
[1736416893798,9.29397423,192.01,191.96,2.6061]
[1736416894283,6.68857423,192.01,191.94,6.68857423]
[1736416894491,6.68857423,192.01,191.97,2.6059]
[1736416900488,1.5366,192.02,191.97,2.6059]
[1736416900690,6.68857423,192.04,191.97,6.68857423]
[1736416901786,9.29367423,192.04,191.99,2.6057]
[1736416902592,2.6052,192.03,191.98,2.6058]
[1736416902791,6.68857423,192.04,191.97,6.68857423]
[1736416903388,2.6053,192.02,191.97,9.29437423]
[1736416903585,6.68857423,192.04,191.97,6.68857423]
[1736416905092,2.6052,192.03,191.98,2.6058]
[1736416908905,2.6052,192.03,191.97,6.68857423]
[1736416909205,2.6052,192.03,191.99,2.6056]
[1736416909399,1.4858,192.07,192.01,6.68857423]
[1736416909796,6.68857423,192.08,192.03,6.68857423]
[1736416910406,6.68857423,192.08,192.04,2.6049]
[1736416910907,6.68857423,192.08,192.03,6.68857423]
[1736416911113,6.68857423,192.08,192.05,2.6049]
[1736416912115,6.68857423,192.08,192.04,2.605]
[1736416912310,6.68857423,192.08,192.01,6.68857423]
[1736416912506,2.6046,192.07,192.01,6.68857423]
[1736416912705,2.6046,192.07,192.02,2.6052]
[1736416912907,2.6046,192.07,192.01,6.68857423]
[1736416913204,6.68857423,192.08,192.01,6.68857423]
[1736416913411,9.29307423,192.08,192.03,2.6051]
[1736416915408,6.68857423,192.08,192.04,2.6049]
[1736416916118,6.68857423,192.08,192.01,6.68857423]
[1736416916119,9.29307423,192.08,192.03,2.6051]
[1736416916320,6.68857423,192.08,192.03,2.6051]
[1736416917417,9.29307423,192.08,192.03,2.6051]
[1736416917920,6.68857423,192.08,192.01,6.68857423]
[1736416918117,2.6047,192.07,192.01,9.29387423]
[1736416918317,6.68857423,192.08,192.01,9.29387423]
[1736416918518,6.68857423,192.08,192.01,6.68857423]
[1736416919216,6.68857423,192.04,192.0,2.6054]
[1736416919512,6.68857423,192.04,191.98,6.68857423]
[1736416920328,6.68857423,192.02,191.96,6.68857423]
[1736416920818,6.68857423,192.04,191.98,6.68857423]
[1736416921619,9.29367423,192.04,191.99,2.6056]
[1736416922721,9.29337423,192.06,192.0,6.68857423]
[1736416923718,9.29337423,192.06,192.01,2.6054]
[1736416924019,6.68857423,192.06,192.01,2.6054]
[1736416924226,6.68857423,192.04,191.98,6.68857423]
[1736416924516,6.68857423,192.02,191.96,7.25361885]
[1736416924821,2.6055,192.01,191.96,7.25361885]
[1736416925121,2.6055,192.01,191.96,2.606]
[1736416925622,2.6055,192.01,191.94,35.70304963]
[1736416925936,2.6055,192.01,191.97,2.6059]
[1736416926114,2.6055,192.01,191.94,6.68857423]
[1736416926316,2.6057,191.99,191.94,6.68857423]
[1736416926718,6.68857423,191.98,191.92,35.70304963]
[1736416927124,6.68857423,191.96,191.92,29.0144754]
[1736416927644,2.6062,191.95,191.92,29.0144754]
[1736416927823,6.68857423,191.96,191.92,29.0144754]
[1736416928124,9.29477423,191.96,191.91,2.6068]
[1736416928326,6.68857423,191.96,191.9,13.94219308]
[1736416928522,2.6063,191.95,191.9,7.25361885]
[1736416928817,6.68857423,191.92,191.87,32.76059438]
[1736416929529,6.68857423,191.9,191.87,29.0144754]
[1736416929716,6.68857423,191.9,191.86,7.25361885]
[1736416930519,6.68857423,191.92,191.86,7.25361885]
[1736416930730,6.68857423,191.92,191.84,6.68857423]
[1736416930919,6.68857423,191.92,191.86,6.68857423]
[1736416931117,8.29027423,191.94,191.88,6.68857423]
[1736416931515,10.89667423,191.94,191.89,2.607]
[1736416932223,9.29497423,191.94,191.89,2.607]
[1736416932426,2.6064,191.94,191.89,2.607]
[1736416932625,2.6064,191.94,191.88,6.68857423]
[1736416932920,9.29487423,191.95,191.9,2.6068]
[1736416933385,2.6064,191.94,191.9,2.6068]
[1736416933832,6.68857423,191.95,191.9,2.6068]
[1736416934031,9.29477423,191.95,191.9,2.6068]
[1736416934221,4.4,191.96,191.91,2.6067]
[1736416934427,4.4,191.96,191.9,6.68857423]
[1736416934634,9.29467423,191.97,191.92,6.68857423]
[1736416934937,9.29467423,191.97,191.92,2.6066]
[1736416936730,6.68857423,191.97,191.9,6.68857423]
[1736416936935,2.6061,191.96,191.91,2.6067]
[1736416939931,6.68857423,191.95,191.9,6.68857423]
[1736416940135,6.68857423,191.94,191.88,6.68857423]
[1736416941137,9.29497423,191.94,191.89,2.607]
[1736416941740,6.68857423,191.94,191.88,6.68857423]
[1736416942035,6.68857423,191.92,191.86,6.68857423]
[1736416942536,2.6069,191.91,191.86,9.29597423]
[1736416943041,9.29557423,191.9,191.84,9.29617423]
[1736416943433,6.68857423,191.9,191.84,9.29617423]
[1736416943635,2.6071,191.89,191.84,9.29617423]
[1736416944640,9.29547423,191.9,191.85,2.6075]
[1736416944956,6.68857423,191.92,191.86,6.68857423]
[1736416945839,2.6068,191.91,191.86,9.29597423]
[1736416946030,2.6068,191.91,191.81,44.58731253]
[1736416946031,4.42,191.94,191.88,6.68857423]
[1736416946240,11.10857423,191.94,191.88,6.68857423]
[1736416947144,2.6066,191.93,191.88,9.29567423]
[1736416947438,6.68857423,191.92,191.86,6.68857423]
[1736416947649,9.29557423,191.9,191.84,9.29627423]
[1736416947859,6.68857423,191.9,191.84,9.29627423]
[1736416948541,2.6071,191.89,191.84,9.29627423]
[1736416949048,9.29557423,191.9,191.85,2.6075]
[1736416949752,9.29527423,191.92,191.87,2.6073]
[1736416949935,6.68857423,191.92,191.86,6.68857423]
[1736416950845,6.68857423,191.94,191.88,6.68857423]
[1736416951846,6.68857423,191.94,191.9,2.6069]
[1736416952041,1.5133,192.03,191.9,6.68857423]
[1736416952247,6.68857423,191.96,191.9,6.68857423]
[1736416952435,2.6063,191.95,191.91,2.6068]
[1736416952842,6.68857423,191.94,191.91,2.6068]
[1736416955348,2.6063,191.95,191.91,2.6068]
[1736416955545,2.6063,191.95,191.92,2.6066]
[1736416956143,6.68857423,191.96,191.93,2.6065]
[1736416957143,9.29477423,191.96,191.92,2.6066]
[1736416959948,9.29477423,191.96,191.93,2.6065]
[1736416960250,6.68857423,191.96,191.93,2.6065]
[1736416960843,9.29467423,191.96,191.93,2.6065]
[1736416963350,9.29447423,191.98,191.95,2.6062]
[1736416963948,2.606,191.97,191.94,2.6063]
[1736416969763,6.68857423,191.96,191.92,2.6066]
[1736416970361,9.29467423,191.96,191.92,2.6066]
[1736416972655,2.6061,191.96,191.92,2.6066]
[1736416972856,6.68857423,191.98,191.9,6.68857423]
[1736416973160,2.606,191.97,191.93,2.6064]
[1736416973860,1.5133,192.03,191.92,6.68857423]
[1736416974057,6.68857423,191.98,191.94,2.6063]
[1736416974967,2.606,191.97,191.93,2.6065]
[1736416977960,2.606,191.97,191.94,2.6064]
[1736416978169,2.606,191.97,191.92,6.68857423]
[1736416978355,2.606,191.97,191.93,2.6065]
[1736416980459,2.6055,192.01,191.96,2.56491343]
[1736416980659,2.6055,192.01,191.96,6.68857423]
[1736416980868,6.68857423,192.03,191.96,6.68857423]
[1736416981068,6.68857423,192.03,191.97,2.6059]
[1736416981476,9.29377423,192.03,191.97,2.6059]
[1736416982174,9.29377423,192.03,191.96,6.68857423]
[1736416982368,9.29377423,192.03,191.98,2.6058]
[1736416983572,9.29377423,192.03,191.96,6.68857423]
[1736416983871,9.29377423,192.03,191.99,2.6056]
[1736416985177,9.29377423,192.03,192.0,2.6055]
[1736416985371,2.605,192.05,191.96,6.68857423]
[1736416985566,6.68857423,192.04,191.98,6.68857423]
[1736416985771,6.68857423,192.04,191.99,2.6056]
[1736416986072,6.68857423,192.04,191.98,6.68857423]
[1736416986977,3.1796,192.1,191.98,6.68857423]
[1736416987166,6.68857423,192.07,192.0,6.68857423]
[1736416987691,6.68857423,192.03,191.92,33.40047845]
[1736416987874,6.68857423,192.01,191.95,6.68857423]
[1736416988184,9.29397423,192.01,191.94,2.6063]
[1736416988387,6.68857423,191.99,191.92,29.00047845]
[1736416988571,6.68857423,191.97,191.92,29.00047845]
[1736416989176,6.68857423,191.97,191.91,6.68857423]
[1736416989679,9.29457423,191.97,191.91,6.68857423]
[1736416991175,6.68857423,191.97,191.87,3.1281]
[1736416991384,1.524,192.02,191.88,6.68857423]
[1736416991385,9.29487423,191.95,191.88,6.68857423]
[1736416991878,6.68857423,191.95,191.88,6.68857423]
[1736416992072,2.6064,191.94,191.88,6.68857423]
[1736416992282,6.68857423,191.95,191.88,6.68857423]
[1736416992472,6.68857423,191.95,191.9,6.68857423]
[1736416992994,6.68857423,191.97,191.91,2.6067]
[1736416993206,6.68857423,191.97,191.9,6.68857423]
[1736416994080,9.29457423,191.97,191.92,2.6066]
[1736416997982,9.29457423,191.97,191.9,6.68857423]
[1736416997983,9.29487423,191.95,191.9,2.6069]
[1736416998182,2.6063,191.95,191.9,2.6069]
[1736416998389,6.68857423,191.95,191.88,6.68857423]
[1736416998679,6.68857423,191.95,191.91,2.6067]
[1736417003588,2.6061,191.96,191.91,2.6067]
[1736417003589,9.29467423,191.96,191.91,2.6067]
[1736417003985,9.29467423,191.96,191.92,2.6066]
[1736417004181,9.29447423,191.98,191.92,6.68857423]
[1736417004784,9.29447423,191.98,191.94,2.6062]
[1736417004991,2.6059,191.98,191.94,2.6062]
[1736417005179,2.6054,192.01,191.96,6.68857423]
[1736417005399,6.68857423,192.03,191.96,6.68857423]
[1736417005400,6.68857423,192.03,191.99,2.6057]
[1736417005788,9.29387423,192.03,191.99,2.6057]
[1736417007386,2.6053,192.02,191.99,2.6057]
[1736417007603,5.9092,192.07,192.0,6.68857423]
[1736417007785,6.68857423,192.06,192.0,6.68857423]
[1736417008690,2.605,192.05,192.01,2.6053]
[1736417009282,2.605,192.04,192.01,2.6053]
[1736417009681,2.605,192.04,192.0,9.29407423]
[1736417009882,9.29357423,192.04,192.0,2.6055]
[1736417014189,6.68857423,192.04,191.98,6.68857423]
[1736417014387,6.68857423,192.02,191.97,2.606]
[1736417015189,2.6054,192.01,191.97,2.606]
[1736417017094,9.29387423,192.02,191.97,2.606]
[1736417018896,2.6053,192.02,191.97,2.606]
[1736417023901,2.6053,192.02,191.98,2.6058]
[1736417027898,2.6052,192.03,191.99,2.6057]
[1736417028100,6.68857423,192.06,192.0,6.68857423]
[1736417028301,6.68857423,192.08,192.0,6.68857423]
[1736417028496,6.68857423,192.08,192.02,6.68857423]
[1736417028806,6.68857423,192.08,192.04,2.6049]
[1736417029107,6.68857423,192.08,192.02,6.68857423]
[1736417030104,6.68857423,192.08,192.04,2.6049]
[1736417030500,9.29307423,192.08,192.04,2.6049]
[1736417031097,2.6046,192.07,192.03,2.6051]
[1736417033903,6.68857423,192.06,191.98,1.6164]
[1736417034095,6.68857423,192.04,191.98,6.68857423]
[1736417034805,2.6053,192.03,191.98,9.29427423]
[1736417035194,2.6053,192.03,191.98,6.68857423]
[1736417035397,9.29357423,192.04,191.99,2.6056]
[1736417036904,2.605,192.04,191.99,2.6056]
[1736417037210,2.605,192.04,192.0,2.6055]
[1736417043116,5.9494,192.12,191.98,6.68857423]
[1736417043304,5.9494,192.12,192.02,6.68857423]
[1736417043305,0.80101539,192.11,192.02,6.68857423]
[1736417043508,6.68857423,192.09,192.02,6.68857423]
[1736417043705,6.68857423,192.09,192.06,2.6047]
[1736417045409,9.29287423,192.09,192.06,2.6047]
[1736417047237,6.68857423,192.09,192.04,2.6049]
[1736417047448,6.68857423,192.07,192.01,6.68857423]
[1736417048334,9.29317423,192.07,192.03,2.6051]
[1736417048513,6.68857423,192.09,192.03,6.68857423]
[1736417048923,1.5494,192.12,192.05,6.68857423]
[1736417049116,8.23797423,192.12,192.05,6.68857423]
[1736417049331,5.5523346,192.14,192.05,6.68857423]
[1736417049523,9.29237423,192.13,192.09,2.6043]
[1736417052523,2.604,192.12,192.09,2.6043]
[1736417058929,214.66756143,192.27,192.09,6.68857423]
[1736417059135,6.68857423,192.17,192.11,2.604]
[1736417059327,6.68857423,192.17,192.09,6.68857423]
[1736417059720,6.68857423,192.17,192.1,2.6042]
[1736417060125,2.6038,192.14,192.1,2.6042]
[1736417060323,2.6038,192.14,192.11,2.604]
[1736417061726,2.6038,192.14,192.11,9.29257423]
[1736417062230,2.6038,192.14,192.11,6.68857423]
[1736417062421,2.6038,192.14,192.12,2.6039]
[1736417062627,6.68857423,192.17,192.12,2.6039]
[1736417062842,2.6036,192.15,192.12,2.6039]
[1736417064540,2.6036,192.15,192.13,6.68857423]
[1736417065526,2.6036,192.15,192.11,6.68857423]
[1736417065724,2.6037,192.14,192.11,6.68857423]
[1736417066125,6.68857423,192.17,192.11,6.68857423]
[1736417067232,6.68857423,192.15,192.07,2.9477]
[1736417067633,6.68857423,192.15,192.08,6.68857423]
[1736417067942,6.68857423,192.13,192.06,6.68857423]
[1736417068937,2.6042,192.11,192.07,2.6046]
[1736417071541,6.68857423,192.11,192.01,1.5967]
[1736417071746,6.68857423,192.11,192.04,6.68857423]
[1736417073136,2.6044,192.09,192.04,9.29347423]
[1736417075741,2.6045,192.08,192.04,9.29347423]
[1736417079639,2.6044,192.09,192.04,9.29347423]
[1736417080350,2.6042,192.1,192.05,2.6047]
[1736417080748,2.6042,192.1,192.04,6.68857423]
[1736417080948,6.68857423,192.12,192.04,6.68857423]
[1736417081153,2.6041,192.11,192.06,6.68857423]
[1736417082146,2.6041,192.11,192.07,2.6046]
[1736417084849,6.68857423,192.14,192.06,6.68857423]
[1736417085043,6.68857423,192.14,192.08,6.68857423]
[1736417085643,6.68857423,192.16,192.1,6.68857423]
[1736417086854,9.29197423,192.16,192.13,2.6038]
[1736417088647,2.6035,192.15,192.12,2.6039]
[1736417089153,2.6037,192.14,192.1,2.6041]
[1736417089358,6.68857423,192.14,192.04,29.00047845]
[1736417089550,4.38,192.17,192.04,29.00047845]
[1736417089551,6.68857423,192.12,192.06,6.68857423]
[1736417089747,2.6042,192.1,192.06,9.29327423]
[1736417089949,2.6042,192.1,192.06,2.6047]
[1736417090156,6.68857423,192.1,192.04,13.93869384]
[1736417090355,2.6044,192.09,192.05,2.6048]
[1736417090958,6.68857423,192.1,192.04,6.68857423]
[1736417091370,6.68857423,192.08,192.01,37.28575268]
[1736417091653,6.68857423,192.08,192.01,8.28527423]
[1736417092147,2.6047,192.07,192.03,2.6051]
[1736417094349,6.68857423,192.08,192.0,1.547]
[1736417094649,9.29337423,192.06,192.01,2.6053]
[1736417099354,2.6048,192.06,192.02,6.68857423]
[1736417099549,2.6046,192.08,192.04,2.605]
[1736417099852,2.6046,192.08,192.04,9.29357423]
[1736417104854,2.6045,192.09,192.05,2.6048]
[1736417110460,9.29267423,192.11,192.06,9.29317423]
[1736417110659,2.6041,192.11,192.06,9.29317423]
[1736417111075,2.6041,192.11,192.07,2.6046]
[1736417111669,2.6041,192.11,192.08,2.6045]
[1736417111888,13.25015087,192.2,192.08,2.6045]
[1736417111889,6.68857423,192.15,192.08,6.68857423]
[1736417112364,8.04435087,192.2,192.08,6.68857423]
[1736417112660,6.68857423,192.17,192.1,6.68857423]
[1736417114162,2.6035,192.15,192.11,2.604]
[1736417114462,6.68857423,192.17,192.11,2.604]
[1736417114662,6.68857423,192.15,192.09,2.6043]
[1736417115555,2.6039,192.13,192.09,2.6043]
[1736417115867,2.6041,192.11,192.08,9.29307423]
[1736417116057,2.6041,192.11,192.08,2.6045]
[1736417116460,2.6041,192.11,192.07,2.6046]
[1736417118655,2.6041,192.11,192.08,6.68857423]
[1736417120269,6.68857423,192.13,192.08,6.68857423]
[1736417120563,2.604,192.12,192.08,6.68857423]
[1736417121655,2.6038,192.13,192.09,2.6043]
[1736417125669,2.6038,192.13,192.1,2.6041]
[1736417125874,2.6036,192.15,192.1,6.68857423]
[1736417126264,2.6036,192.15,192.11,2.604]
[1736417126665,6.68857423,192.17,192.11,2.604]
[1736417126972,2.6037,192.14,192.11,2.604]
[1736417127170,6.68857423,192.17,192.1,9.29277423]
[1736417127372,2.6035,192.15,192.1,9.29277423]
[1736417127669,6.68857423,192.17,192.1,9.29267423]
[1736417127858,6.68857423,192.17,192.03,1.5439]
[1736417127859,6.68857423,192.15,192.03,1.5439]
[1736417128059,2.604,192.12,192.08,6.68857423]
[1736417128272,2.604,192.12,192.09,2.6043]
[1736417129884,2.6041,192.11,192.08,9.29297423]
[1736417130082,6.68857423,192.13,192.06,6.68857423]
[1736417130672,2.6044,192.09,192.06,9.29327423]
[1736417130873,2.6044,192.09,192.06,6.68857423]
[1736417131072,2.6044,192.09,192.04,6.68857423]
[1736417132275,2.6044,192.09,192.05,2.6048]
[1736417134579,2.6044,192.09,192.06,2.6047]
[1736417136079,2.6042,192.1,192.06,2.6047]
[1736417136279,2.6042,192.1,192.06,9.29327423]
[1736417139485,2.6043,192.09,192.06,6.68857423]
[1736417141782,2.6047,192.07,192.03,4.1489]
[1736417142079,6.68857423,192.09,192.03,2.605]
[1736417143183,2.6046,192.07,192.03,2.605]
[1736417145891,2.6046,192.07,192.02,6.68857423]
[1736417145892,6.68857423,192.05,191.98,43.73070753]
[1736417146087,6.68857423,192.05,191.99,6.68857423]
[1736417146607,2.6053,192.03,191.99,9.29427423]
[1736417147588,2.6053,192.02,191.99,6.68857423]
[1736417147978,2.6054,192.01,191.98,42.25370753]
[1736417148199,6.68857423,192.03,191.97,6.68857423]
[1736417148424,6.68857423,192.01,191.95,6.68857423]
[1736417148983,2.6057,191.99,191.95,6.68857423]
[1736417149419,6.68857423,192.01,191.95,6.68857423]
[1736417149687,2.6058,191.98,191.94,3.68895059]
[1736417150599,2.6058,191.98,191.95,6.68857423]
[1736417151487,2.6058,191.98,191.94,3.68895059]
[1736417153190,2.6058,191.98,191.94,6.29525059]
[1736417154190,9.29427423,191.99,191.94,6.29525059]
[1736417156196,6.68857423,191.99,191.94,6.29525059]
[1736417156391,2.6058,191.98,191.94,6.29525059]
[1736417158094,2.606,191.97,191.94,3.68895059]
[1736417158296,2.606,191.97,191.93,9.29507423]
[1736417158692,9.29457423,191.97,191.93,2.6065]
[1736417158889,2.6061,191.96,191.91,9.29527423]
[1736417159085,6.68857423,191.97,191.91,6.68857423]
[1736417160101,2.6062,191.95,191.91,9.29527423]
[1736417160295,6.68857423,191.95,191.86,1.6147]
[1736417160500,6.68857423,191.93,191.87,6.68857423]
[1736417160901,2.6067,191.92,191.87,9.29577423]
[1736417162014,2.6067,191.92,191.88,2.6072]
[1736417162701,2.6067,191.92,191.87,6.68857423]
[1736417162898,6.68857423,191.93,191.87,2.6073]
[1736417163099,2.6068,191.91,191.87,2.6073]
[1736417163311,6.68857423,191.91,191.85,2.6076]
[1736417164014,2.6069,191.9,191.85,2.6076]
[1736417164202,2.6069,191.9,191.86,2.6074]
[1736417164499,2.6069,191.9,191.8,1.4668]
[1736417164690,6.68857423,191.89,191.85,2.6076]
[1736417164893,6.68857423,191.89,191.8,1.4668]
[1736417165091,6.68857423,191.89,191.83,6.68857423]
[1736417165302,6.68857423,191.87,191.8,1.4668]
[1736417165511,6.68857423,191.87,191.81,6.68857423]
[1736417165794,2.6076,191.86,191.81,2.6081]
[1736417165998,6.68857423,191.87,191.8,1.4668]
[1736417166904,6.68857423,191.87,191.81,6.68857423]
[1736417168197,6.68857423,191.87,191.8,1.4668]
[1736417168501,6.68857423,191.87,191.8,8.15537423]
[1736417168700,2.6076,191.85,191.8,10.76357423]
[1736417169396,2.6076,191.85,191.81,2.6081]
[1736417171703,2.6076,191.85,191.8,10.76357423]
[1736417171901,9.29617423,191.85,191.8,2.6082]
[1736417172094,2.6078,191.84,191.78,74.22469225]
[1736417172294,6.68857423,191.83,191.78,66.02141802]
[1736417173103,2.608,191.82,191.78,66.02141802]
[1736417173296,2.608,191.82,191.77,2.6086]
[1736417174213,6.68857423,191.83,191.77,2.6086]
[1736417174406,2.6083,191.8,191.76,5.1024028]
[1736417174807,6.68857423,191.81,191.76,5.1024028]
[1736417175004,6.68857423,191.81,191.76,7.7112028]
[1736417175005,9.29677423,191.81,191.76,7.7112028]
[1736417175303,6.68857423,191.81,191.76,5.1024028]
[1736417176004,2.6084,191.79,191.76,5.1024028]
[1736417176204,6.68857423,191.81,191.76,5.1024028]
[1736417176604,9.29677423,191.81,191.76,7.7112028]
[1736417176907,6.68857423,191.81,191.76,5.1024028]
[1736417177110,2.6083,191.8,191.76,5.1024028]
[1736417178510,6.68857423,191.81,191.76,5.1024028]
[1736417178706,6.68857423,191.79,191.76,5.1024028]
[1736417179420,9.29697423,191.79,191.76,5.1024028]
[1736417181124,4.38,191.83,191.77,2.6087]
[1736417181311,6.68857423,191.82,191.76,11.79097703]
[1736417181515,6.68857423,191.82,191.76,5.1024028]
[1736417181712,9.29687423,191.8,191.76,5.1024028]
[1736417182110,6.68857423,191.8,191.76,5.1024028]
[1736417182312,2.6084,191.79,191.76,5.1024028]
[1736417182536,6.68857423,191.78,191.72,1.4656]
[1736417182711,4.38,191.83,191.71,2.6094]
[1736417182712,6.68857423,191.76,191.71,2.6094]
[1736417182913,6.68857423,191.76,191.7,6.68857423]
[1736417183512,4.38,191.83,191.72,6.68857423]
[1736417183708,6.68857423,191.8,191.72,6.68857423]
[1736417185017,2.6084,191.79,191.72,6.68857423]
[1736417185239,2.6084,191.79,191.74,6.68857423]
[1736417185411,6.68857423,191.8,191.74,6.68857423]
[1736417185616,9.29697423,191.8,191.76,2.6087]
[1736417185916,6.68857423,191.8,191.76,2.6087]
[1736417186120,6.68857423,191.8,191.74,6.68857423]
[1736417187114,2.6086,191.78,191.75,2.6089]
[1736417190017,2.6086,191.78,191.74,9.29767423]
[1736417190212,2.6087,191.77,191.74,9.29767423]
[1736417190427,2.6087,191.77,191.68,1.5246]
[1736417190716,2.6087,191.77,191.73,6.68857423]
[1736417191124,2.6087,191.77,191.73,9.29777423]
[1736417192318,4.38,191.83,191.68,8.82951961]
[1736417192319,6.68857423,191.76,191.68,8.82951961]
[1736417192521,6.68857423,191.74,191.68,15.51809384]
[1736417193419,9.29807423,191.72,191.68,8.82951961]
[1736417193631,6.68857423,191.72,191.68,7.25011961]
[1736417194010,6.68857423,191.72,191.67,4.1197]
[1736417194417,2.6095,191.71,191.66,9.29867423]
[1736417195126,4.4,191.76,191.66,6.68857423]
[1736417195327,4.4,191.76,191.72,6.68857423]
[1736417195922,9.29707423,191.78,191.72,6.68857423]